[Event "POL-chT 1 Liga 2019"]
[Site "Dzwirzyno"]
[Date "2019.09.13"]
[Round "7.4"]
[White "Ciesla, Adam"]
[Black "Reza, Wojciech"]
[Result "0-1"]
[ECO "B22"]
[WhiteElo "2273"]
[BlackElo "2293"]
[Annotator "NA"]
[PlyCount "90"]
[EventDate "2019.09.07"]
[EventType "team-tourn"]
[EventCountry "POL"]
[SourceTitle "playchess.com"]
[Source "ChessBase"]
[SourceQuality "1"]
[TimeControl "40/5400+30:1800+30"]

1. e4 {[%emt 0:00:00]} c5 {[%emt 0:00:01]} 2. Nf3 {[%emt 0:00:00]} Nc6 {[%emt 0:04:10]} 3. c3 {[%emt 0:00:00]} Nf6 {[%emt 0:01:04]} 4. e5 {[%emt 0:01:08]} Nd5 {[%emt 0:00:08]} 5. Na3 {[%emt 0:00:17]} g6 {[%emt 0:07:05]} 6. g3 {[%emt 0:00:17]} Bg7 {[%emt 0:00:50]} 7. Bg2 {[%emt 0:00:10]} O-O {[%emt 0:12:45]} 8. O-O {[%emt 0:00:13]} Nc7 {[%emt 0:12:07]} 9. d4 {[%emt 0:08:00]} cxd4 {[%emt 0:00:32]} 10. cxd4 {[%emt 0:00:10]} d6 {[%emt 0:02:28]} 11. exd6 {[%emt 0:26:11]} Qxd6 {[%emt 0:04:13]} 12. Bf4 {[%emt 0:06:16]} Qd8 {[%emt 0:00:09]} 13. Rc1 {[%emt 0:07:37]} Ne6 {[%emt 0:05:50]} 14. Be5 {[%emt 0:03:32]} Nexd4 {[%emt 0:06:08]} 15. Bxg7 {[%emt 0:04:26]} Kxg7 {[%emt 0:00:41]} 16. Nxd4 {[%emt 0:12:56]} Nxd4 {[%emt 0:01:59]} 17. Rc4 {[%emt 0:05:14]} e5 {[%emt 0:03:52]} 18. f4 {[%emt 0:00:40]} Qb6 {[%emt 0:03:48]} 19. fxe5 {[%emt 0:05:26]} Nf5+ {[%emt 0:06:31]} 20. Rf2 {[%emt 0:00:40]} Be6 {[%emt 0:03:03]} 21. Rc3 {[%emt 0:02:31]} Ne3 {[%emt 0:01:23]} 22. Qd6 {[%emt 0:06:47]} Qxd6 {[%emt 0:00:25]} 23. exd6 {[%emt 0:00:02]} Nd1 {[%emt 0:00:07]} 24. Rd2 {[%emt 0:03:48]} Nxc3 {[%emt 0:00:22]} 25. bxc3 {[%emt 0:00:01]} Rac8 {[%emt 0:00:44]} 26. Bxb7 {[%emt 0:00:51]} Rxc3 {[%emt 0:00:32]} 27. Nb5 {[%emt 0:00:39]} Rc1+ {[%emt 0:03:28]} 28. Kf2 {[%emt 0:00:01]} Rb1 {[%emt 0:00:15]} 29. a4 {[%emt 0:01:26]} Bd7 {[%emt 0:00:26]} 30. Ba6 {[%emt 0:02:09]} Rb4 {[%emt 0:00:20]} 31. Nc3 {[%emt 0:00:14]} Bxa4 {[%emt 0:02:43]} 32. d7 {[%emt 0:02:11]} Rd8 {[%emt 0:00:35]} 33. Bc8 {[%emt 0:00:49]} Bc6 {[%emt 0:00:32]} 34. Ne2 {[%emt 0:01:31]} Rb6 {[%emt 0:01:32]} 35. Nf4 {[%emt 0:00:30]} Bb7 {[%emt 0:00:26]} 36. Rc2 {[%emt 0:00:05]} Rc6 {[%emt 0:00:10]} 37. Ra2 {[%emt 0:00:19]} Bxc8 {[%emt 0:00:18]} 38. dxc8=Q {[%emt 0:00:13]} Rcxc8 {[%emt 0:00:32]} 39. Rxa7 {[%emt 0:00:02]} Rd2+ {[%emt 0:00:13]} 40. Kf3 {[%emt 0:00:00]} Rxh2 {[%emt 0:00:00]} 41. Ne6+ {[%emt 0:01:31]} Kf6 {[%emt 0:00:49]} 42. Nf4 {[%emt 0:00:06]} Rc3+ {[%emt 0:00:23]} 43. Ke4 {[%emt 0:00:48]} Rxg3 {[%emt 0:00:18]} 44. Ra6+ {[%emt 0:01:08]} Kg5 {[%emt 0:00:10]} 45. Ra5+ {[%emt 0:00:10]} f5+ {[%emt 0:00:05]} 0-1

[Event "POL-chT 1 Liga 2019"]
[Site "Dzwirzyno"]
[Date "2019.09.13"]
[Round "7.5"]
[White "Renkowski, Piotr"]
[Black "Tomaszewski, Roman"]
[Result "1/2-1/2"]
[ECO "B12"]
[WhiteElo "2179"]
[BlackElo "2195"]
[Annotator "NA"]
[PlyCount "87"]
[EventDate "2019.09.07"]
[EventType "team-tourn"]
[EventCountry "POL"]
[SourceTitle "playchess.com"]
[Source "ChessBase"]
[SourceQuality "1"]
[TimeControl "40/5400+30:1800+30"]

1. e4 {[%emt 0:00:00]} c6 {[%emt 0:00:00]} 2. d4 {[%emt 0:00:00]} d5 {[%emt 0:00:00]} 3. f3 {[%emt 0:00:00]} e6 {[%emt 0:10:23]} 4. e5 {[%emt 0:03:41]} c5 {[%emt 0:05:28]} 5. c3 {[%emt 0:03:24]} Nc6 {[%emt 0:05:43]} 6. f4 {[%emt 0:05:02]} Qb6 {[%emt 0:20:35]} 7. Nf3 {[%emt 0:01:36]} Bd7 {[%emt 0:02:20]} 8. Be2 {[%emt 0:10:08]} Nh6 {[%emt 0:08:35]} 9. O-O {[%emt 0:09:36]} cxd4 {[%emt 0:01:06]} 10. Kh1 {[%emt 0:00:12]} Nf5 {[%emt 0:03:26]} 11. cxd4 {[%emt 0:05:37]} Ncxd4 {[%emt 0:05:24]} 12. Bd3 {[%emt 0:01:54]} Bc5 {[%emt 0:17:48]} 13. Nc3 {[%emt 0:06:42]} Nxf3 {[%emt 0:00:27]} 14. Qxf3 {[%emt 0:04:46]} g6 {[%emt 0:05:14]} 15. Rb1 {[%emt 0:13:45]} a5 {[%emt 0:00:45]} 16. b3 {[%emt 0:03:05]} h5 {[%emt 0:00:20]} 17. Na4 {[%emt 0:01:30]} Bxa4 {[%emt 0:00:47]} 18. bxa4 {[%emt 0:00:04]} Qc7 {[%emt 0:00:25]} 19. Bxf5 {[%emt 0:02:26]} gxf5 {[%emt 0:01:58]} 20. Ba3 {[%emt 0:00:27]} Bxa3 {[%emt 0:00:30]} 21. Qxa3 {[%emt 0:00:05]} Ra6 {[%emt 0:00:02]} 22. Rb5 {[%emt 0:14:52]} Rc6 {[%emt 0:00:08]} 23. h3 {[%emt 0:00:37]} h4 {[%emt 0:01:33]} 24. Rfb1 {[%emt 0:00:28]} b6 {[%emt 0:00:06]} 25. Qe3 {[%emt 0:00:34]} Kf8 {[%emt 0:02:58]} 26. Rxb6 {[%emt 0:05:17]} Rxb6 {[%emt 0:00:06]} 27. Rxb6 {[%emt 0:01:54]} Rh6 {[%emt 0:00:10]} 28. Rb3 {[%emt 0:01:19]} Kg7 {[%emt 0:01:21]} 29. Rc3 {[%emt 0:01:43]} Qb7 {[%emt 0:00:19]} 30. Qc5 {[%emt 0:01:20]} Qb1+ {[%emt 0:00:35]} 31. Rc1 {[%emt 0:00:35]} Qe4 {[%emt 0:01:32]} 32. Qf2 {[%emt 0:01:14]} Qxa4 {[%emt 0:00:07]} 33. Rg1 {[%emt 0:00:16]} Qe4 {[%emt 0:02:35]} 34. Re1 {[%emt 0:00:07]} Qc4 {[%emt 0:00:21]} 35. Rg1 {[%emt 0:00:47]} a4 {[%emt 0:00:54]} 36. Rb1 {[%emt 0:01:36]} Rg6 {[%emt 0:02:17]} 37. Rb7 {[%emt 0:00:23]} Rg3 {[%emt 0:01:22]} 38. Kh2 {[%emt 0:00:00]} d4 {[%emt 0:00:30]} 39. Rd7 {[%emt 0:00:10]} d3 {[%emt 0:00:27]} 40. Qa7 {[%emt 0:00:00]} Rxg2+ {[%emt 0:00:00]} 41. Kxg2 {[%emt 0:00:54]} Qe4+ {[%emt 0:00:55]} 42. Kh2 {[%emt 0:12:48]} Qe2+ {[%emt 0:01:58]} 43. Kh1 {[%emt 0:00:29]} Qe4+ {[%emt 0:00:29]} 44. Kg1 {[%emt 0:03:36]} 1/2-1/2

[Event "POL-chT 1 Liga 2019"]
[Site "Dzwirzyno"]
[Date "2019.09.13"]
[Round "7.6"]
[White "Lach, Aleksandra"]
[Black "Jablonska, Sabina"]
[Result "1-0"]
[ECO "A45"]
[WhiteElo "2173"]
[BlackElo "1928"]
[Annotator "NA"]
[PlyCount "119"]
[EventDate "2019.09.07"]
[EventType "team-tourn"]
[EventCountry "POL"]
[SourceTitle "playchess.com"]
[Source "ChessBase"]
[SourceQuality "1"]
[TimeControl "40/5400+30:1800+30"]

1. d4 {[%emt 0:00:24]} Nf6 {[%emt 0:00:00]} 2. Bf4 {[%emt 0:00:56]} b6 {[%emt 0:03:51]} 3. Nd2 {[%emt 0:09:40]} Bb7 {[%emt 0:02:26]} 4. Ngf3 {[%emt 0:04:11]} g6 {[%emt 0:02:50]} 5. e3 {[%emt 0:06:12]} Bg7 {[%emt 0:00:37]} 6. Bd3 {[%emt 0:01:22]} d6 {[%emt 0:05:53]} 7. h3 {[%emt 0:15:29]} Nbd7 {[%emt 0:02:39]} 8. O-O {[%emt 0:09:11]} O-O {[%emt 0:01:25]} 9. Bh2 {[%emt 0:02:33]} Re8 {[%emt 0:02:28]} 10. c4 {[%emt 0:05:11]} e5 {[%emt 0:06:45]} 11. Be2 {[%emt 0:01:08]} Ne4 {[%emt 0:08:53]} 12. d5 {[%emt 0:08:30]} Nxd2 {[%emt 0:03:23]} 13. Qxd2 {[%emt 0:00:29]} a5 14. Rad1 {[%emt 0:07:40]} h6 {[%emt 0:02:16]} 15. e4 {[%emt 0:03:05]} Nc5 {[%emt 0:02:28]} 16. Qc2 {[%emt 0:01:15]} Bc8 {[%emt 0:03:41]} 17. Nd2 {[%emt 0:03:02]} f5 {[%emt 0:02:40]} 18. f3 {[%emt 0:02:08]} f4 {[%emt 0:05:40]} 19. Nb3 {[%emt 0:01:44]} Nb7 {[%emt 0:05:58]} 20. c5 {[%emt 0:02:31]} dxc5 {[%emt 0:17:46]} 21. Bb5 {[%emt 0:00:30]} Bd7 {[%emt 0:04:03]} 22. Bc6 Rb8 {[%emt 0:00:06]} 23. Bxb7 {[%emt 0:03:49]} Rxb7 {[%emt 0:00:30]} 24. Nd2 {[%emt 0:02:33]} Bf8 {[%emt 0:01:29]} 25. Nc4 Qf6 {[%emt 0:03:13]} 26. Qb3 {[%emt 0:04:33]} Bd6 {[%emt 0:00:30]} 27. Nxa5 Rbb8 {[%emt 0:03:12]} 28. Nc6 {[%emt 0:02:17]} Ra8 {[%emt 0:00:18]} 29. a3 {[%emt 0:00:30]} g5 {[%emt 0:01:38]} 30. Qc3 {[%emt 0:02:50]} Kg7 {[%emt 0:00:30]} 31. Ra1 {[%emt 0:00:29]} h5 {[%emt 0:00:41]} 32. a4 {[%emt 0:00:30]} Ra6 {[%emt 0:02:27]} 33. b3 {[%emt 0:00:33]} Rea8 34. Qc4 Qf8 {[%emt 0:02:51]} 35. Qc3 {[%emt 0:01:08]} Qe8 {[%emt 0:00:22]} 36. h4 {[%emt 0:00:31]} Bxc6 {[%emt 0:02:53]} 37. dxc6 Qg6 {[%emt 0:00:17]} 38. hxg5 {[%emt 0:00:34]} Qxg5 39. Qc4 Qg6 {[%emt 0:01:10]} 40. Rad1 {[%emt 0:00:00]} Ra5 {[%emt 0:00:00]} 41. Rd5 {[%emt 0:10:22]} b5 {[%emt 0:10:39]} 42. Qc3 {[%emt 0:01:45]} b4 {[%emt 0:03:26]} 43. Qb2 {[%emt 0:05:34]} Qg5 {[%emt 0:03:46]} 44. Qd2 c4 {[%emt 0:02:58]} 45. Rxd6 {[%emt 0:06:58]} cxd6 46. Qxd6 {[%emt 0:00:29]} Qd8 {[%emt 0:05:49]} 47. Qxb4 {[%emt 0:00:58]} cxb3 {[%emt 0:04:14]} 48. Qb7+ {[%emt 0:03:38]} Kf8 {[%emt 0:00:21]} 49. c7 {[%emt 0:02:03]} Qc8 {[%emt 0:00:27]} 50. Qb4+ {[%emt 0:02:20]} Ke8 {[%emt 0:00:25]} 51. Qxb3 {[%emt 0:00:11]} Qxc7 {[%emt 0:04:28]} 52. Qg8+ {[%emt 0:00:35]} Kd7 {[%emt 0:00:44]} 53. Rd1+ {[%emt 0:00:33]} Kc6 {[%emt 0:00:41]} 54. Rc1+ {[%emt 0:00:33]} Rc5 {[%emt 0:00:11]} 55. Qxa8+ {[%emt 0:00:29]} Kd7 {[%emt 0:00:11]} 56. Rd1+ {[%emt 0:01:29]} Ke7 {[%emt 0:01:03]} 57. Qg8 {[%emt 0:00:25]} Qb6 {[%emt 0:00:18]} 58. Qg7+ Ke8 59. Kh1 {[%emt 0:00:58]} Qc6 {[%emt 0:01:13]} 60. Bg1 {[%emt 0:00:44]} 1-0

[Event "POL-chT 1 Liga 2019"]
[Site "Dzwirzyno"]
[Date "2019.09.13"]
[Round "7.7"]
[White "Chylewski, Patryk"]
[Black "Szwed, Jacek"]
[Result "0-1"]
[ECO "A10"]
[WhiteElo "2342"]
[BlackElo "2370"]
[Annotator "NA"]
[PlyCount "104"]
[EventDate "2019.09.07"]
[EventType "team-tourn"]
[EventCountry "POL"]
[SourceTitle "playchess.com"]
[Source "ChessBase"]
[SourceQuality "1"]
[TimeControl "40/5400+30:1800+30"]

1. c4 {[%emt 0:00:00]} g6 {[%emt 0:04:26]} 2. Nc3 {[%emt 0:00:00]} Bg7 {[%emt 0:00:36]} 3. d4 {[%emt 0:00:21]} c5 {[%emt 0:00:16]} 4. d5 {[%emt 0:00:10]} d6 {[%emt 0:00:14]} 5. e4 {[%emt 0:00:40]} e6 {[%emt 0:00:10]} 6. Nf3 {[%emt 0:12:21]} exd5 {[%emt 0:00:23]} 7. cxd5 {[%emt 0:02:10]} a6 {[%emt 0:00:16]} 8. a4 {[%emt 0:00:08]} Bg4 {[%emt 0:00:24]} 9. Be2 {[%emt 0:00:40]} Bxf3 {[%emt 0:00:15]} 10. Bxf3 {[%emt 0:00:06]} Nd7 {[%emt 0:00:05]} 11. O-O {[%emt 0:00:32]} Ne7 {[%emt 0:00:17]} 12. Bg5 {[%emt 0:03:31]} h6 {[%emt 0:00:34]} 13. Bf4 {[%emt 0:04:04]} Ne5 {[%emt 0:00:16]} 14. Be2 {[%emt 0:00:05]} O-O {[%emt 0:00:50]} 15. Qd2 {[%emt 0:01:48]} Kh7 {[%emt 0:01:49]} 16. Be3 {[%emt 0:01:22]} f5 {[%emt 0:02:38]} 17. f4 {[%emt 0:03:50]} Nd7 {[%emt 0:17:24]} 18. Bd3 {[%emt 0:00:43]} Nf6 {[%emt 0:11:51]} 19. exf5 {[%emt 0:14:54]} Nxf5 {[%emt 0:05:21]} 20. Bxf5 {[%emt 0:07:54]} gxf5 {[%emt 0:00:01]} 21. Bf2 {[%emt 0:01:02]} Qd7 {[%emt 0:18:06]} 22. Qd3 {[%emt 0:02:30]} Ng4 {[%emt 0:13:27]} 23. Bh4 {[%emt 0:06:48]} Rae8 {[%emt 0:07:57]} 24. Kh1 {[%emt 0:27:46]} Qf7 {[%emt 0:06:31]} 25. Rfe1 {[%emt 0:01:32]} Qh5 {[%emt 0:01:02]} 26. Qh3 {[%emt 0:03:12]} Bf6 {[%emt 0:02:15]} 27. Bg3 {[%emt 0:00:59]} Qf7 {[%emt 0:00:03]} 28. Bh4 {[%emt 0:01:29]} Qh5 {[%emt 0:03:24]} 29. Bg3 {[%emt 0:00:02]} Qxh3 {[%emt 0:00:33]} 30. gxh3 {[%emt 0:00:01]} Ne3 {[%emt 0:00:01]} 31. Rac1 {[%emt 0:03:47]} Nc4 {[%emt 0:02:54]} 32. b3 {[%emt 0:00:01]} Nd2 {[%emt 0:00:26]} 33. Red1 {[%emt 0:01:21]} Nxb3 {[%emt 0:00:05]} 34. Rb1 {[%emt 0:00:19]} c4 {[%emt 0:00:02]} 35. Na2 {[%emt 0:00:42]} Nc5 {[%emt 0:00:37]} 36. Bf2 {[%emt 0:00:08]} Nd3 {[%emt 0:01:42]} 37. Rxb7+ {[%emt 0:00:13]} Re7 {[%emt 0:00:00]} 38. Rxe7+ {[%emt 0:00:23]} Bxe7 {[%emt 0:00:01]} 39. Be3 {[%emt 0:00:35]} Rb8 {[%emt 0:01:30]} 40. Rd2 {[%emt 0:00:00]} Bf6 {[%emt 0:00:00]} 41. Kg2 {[%emt 0:05:24]} Re8 {[%emt 0:13:39]} 42. Bb6 {[%emt 0:05:13]} Nxf4+ {[%emt 0:01:05]} 43. Kf3 {[%emt 0:00:24]} Nd3 {[%emt 0:00:42]} 44. Ba5 {[%emt 0:00:51]} Bg5 {[%emt 0:02:55]} 45. Rc2 {[%emt 0:00:29]} Re3+ {[%emt 0:00:36]} 46. Kg2 {[%emt 0:00:03]} Nf4+ {[%emt 0:01:04]} 47. Kf1 {[%emt 0:00:46]} Nxd5 {[%emt 0:01:19]} 48. h4 {[%emt 0:02:09]} Bxh4 {[%emt 0:05:21]} 49. Rxc4 {[%emt 0:00:36]} Re4 {[%emt 0:00:26]} 50. Rxe4 {[%emt 0:00:49]} fxe4 {[%emt 0:00:01]} 51. Bb4 {[%emt 0:00:19]} Be7 {[%emt 0:00:25]} 52. Ke2 {[%emt 0:00:16]} Kg6 {[%emt 0:00:01]} 0-1

[Event "POL-chT 1 Liga 2019"]
[Site "Dzwirzyno"]
[Date "2019.09.13"]
[Round "7.8"]
[White "Zylka, Stanislaw"]
[Black "Kowalski, Igor"]
[Result "0-1"]
[ECO "E61"]
[WhiteElo "2338"]
[BlackElo "2364"]
[Annotator "NA"]
[PlyCount "108"]
[EventDate "2019.09.07"]
[EventType "team-tourn"]
[EventCountry "POL"]
[SourceTitle "playchess.com"]
[Source "ChessBase"]
[SourceQuality "1"]
[TimeControl "40/5400+30:1800+30"]

1. d4 {[%emt 0:00:00]} Nf6 {[%emt 0:00:00]} 2. c4 {[%emt 0:00:00]} g6 {[%emt 0:00:00]} 3. Nc3 {[%emt 0:00:01]} Bg7 {[%emt 0:00:00]} 4. g3 {[%emt 0:00:16]} O-O {[%emt 0:11:15]} 5. Bg2 {[%emt 0:00:08]} c6 {[%emt 0:00:56]} 6. e4 {[%emt 0:00:12]} d6 {[%emt 0:00:04]} 7. Nf3 {[%emt 0:00:55]} Bg4 {[%emt 0:05:20]} 8. h3 {[%emt 0:01:05]} Bxf3 {[%emt 0:00:05]} 9. Bxf3 {[%emt 0:00:18]} Nbd7 {[%emt 0:00:28]} 10. Be3 {[%emt 0:01:10]} a6 {[%emt 0:07:29]} 11. a4 {[%emt 0:12:34]} a5 {[%emt 0:01:03]} 12. Qc2 {[%emt 0:02:22]} e5 {[%emt 0:02:01]} 13. Rd1 {[%emt 0:00:29]} Qe7 {[%emt 0:00:26]} 14. Kf1 {[%emt 0:18:00]} exd4 {[%emt 0:15:35]} 15. Bxd4 {[%emt 0:00:08]} Nc5 {[%emt 0:00:09]} 16. Kg2 {[%emt 0:00:59]} Nfd7 {[%emt 0:00:17]} 17. Bxg7 {[%emt 0:00:31]} Kxg7 {[%emt 0:00:03]} 18. Rhe1 {[%emt 0:01:12]} Rad8 {[%emt 0:05:28]} 19. Kh2 {[%emt 0:05:53]} Na6 {[%emt 0:07:05]} 20. Na2 {[%emt 0:05:46]} Ndc5 {[%emt 0:09:39]} 21. Bg2 {[%emt 0:00:59]} Qf6 {[%emt 0:00:13]} 22. Re2 {[%emt 0:04:37]} Rfe8 {[%emt 0:03:34]} 23. Red2 {[%emt 0:08:46]} Nb4 {[%emt 0:01:43]} 24. Nxb4 {[%emt 0:00:31]} axb4 {[%emt 0:00:03]} 25. Rd4 {[%emt 0:03:02]} b3 {[%emt 0:03:16]} 26. Qd2 {[%emt 0:00:51]} Nxa4 {[%emt 0:01:34]} 27. f4 {[%emt 0:00:20]} Ra8 {[%emt 0:00:35]} 28. Rb1 {[%emt 0:12:45]} Red8 {[%emt 0:01:05]} 29. Rd1 {[%emt 0:00:11]} Re8 {[%emt 0:11:29]} 30. Rb1 {[%emt 0:00:09]} Nb6 {[%emt 0:01:21]} 31. Rd1 {[%emt 0:04:56]} c5 {[%emt 0:06:16]} 32. Rxd6 {[%emt 0:00:38]} Nxc4 {[%emt 0:00:04]} 33. Rxf6 {[%emt 0:00:14]} Nxd2 {[%emt 0:00:04]} 34. e5 {[%emt 0:00:48]} Rad8 {[%emt 0:00:17]} 35. Rb6 {[%emt 0:09:50]} c4 {[%emt 0:06:18]} 36. Rxb7 {[%emt 0:00:37]} Kf8 {[%emt 0:00:08]} 37. Rb5 {[%emt 0:03:15]} Rd3 {[%emt 0:00:43]} 38. h4 {[%emt 0:01:14]} Red8 {[%emt 0:00:08]} 39. Kh3 {[%emt 0:00:27]} Ne4 {[%emt 0:00:41]} 40. Rxd3 {[%emt 0:00:00]} Nf2+ {[%emt 0:00:00]} 41. Kh2 {[%emt 0:00:26]} cxd3 {[%emt 0:02:58]} 42. Rxb3 {[%emt 0:01:11]} d2 {[%emt 0:00:02]} 43. Bf3 {[%emt 0:00:11]} d1=Q {[%emt 0:00:07]} 44. Bxd1 {[%emt 0:00:06]} Nxd1 {[%emt 0:00:02]} 45. h5 {[%emt 0:00:59]} Rd2+ {[%emt 0:00:49]} 46. Kh3 {[%emt 0:00:11]} Rxb2 {[%emt 0:00:34]} 47. Ra3 {[%emt 0:00:11]} Kg7 {[%emt 0:02:41]} 48. hxg6 {[%emt 0:00:21]} hxg6 {[%emt 0:00:04]} 49. Kg4 {[%emt 0:01:22]} Rb6 {[%emt 0:07:04]} 50. Kg5 {[%emt 0:01:23]} Nf2 {[%emt 0:01:05]} 51. Ra4 {[%emt 0:00:54]} Rb3 {[%emt 0:01:48]} 52. Kh4 {[%emt 0:01:54]} Re3 {[%emt 0:01:46]} 53. Ra7 {[%emt 0:00:44]} Re1 {[%emt 0:01:27]} 54. g4 {[%emt 0:01:40]} Rg1 {[%emt 0:00:06]} 0-1

[Event "POL-chT 1 Liga 2019"]
[Site "Dzwirzyno"]
[Date "2019.09.13"]
[Round "7.9"]
[White "Nowak, Lukasz"]
[Black "Koziol, Kamil"]
[Result "1-0"]
[ECO "D38"]
[WhiteElo "2270"]
[BlackElo "2292"]
[Annotator "NA"]
[PlyCount "89"]
[EventDate "2019.09.07"]
[EventType "team-tourn"]
[EventCountry "POL"]
[SourceTitle "playchess.com"]
[Source "ChessBase"]
[SourceQuality "1"]
[TimeControl "40/5400+30:1800+30"]

1. d4 {[%emt 0:00:00]} d5 {[%emt 0:00:00]} 2. c4 {[%emt 0:00:00]} e6 {[%emt 0:00:00]} 3. Nf3 {[%emt 0:00:00]} Nf6 {[%emt 0:00:41]} 4. Nc3 {[%emt 0:00:02]} Bb4 {[%emt 0:00:59]} 5. Qa4+ {[%emt 0:00:14]} Nc6 {[%emt 0:00:10]} 6. e3 {[%emt 0:00:12]} dxc4 {[%emt 0:13:05]} 7. Bxc4 {[%emt 0:02:16]} O-O {[%emt 0:01:41]} 8. O-O {[%emt 0:01:37]} Bd6 {[%emt 0:09:12]} 9. Rd1 {[%emt 0:07:46]} Bd7 {[%emt 0:07:53]} 10. Qc2 {[%emt 0:02:09]} e5 {[%emt 0:03:51]} 11. h3 {[%emt 0:04:06]} a6 {[%emt 0:05:45]} 12. a3 {[%emt 0:03:04]} Qc8 {[%emt 0:08:43]} 13. dxe5 {[%emt 0:13:17]} Nxe5 {[%emt 0:00:48]} 14. Nxe5 {[%emt 0:00:16]} Bxe5 {[%emt 0:00:07]} 15. e4 {[%emt 0:02:23]} Bxh3 {[%emt 0:06:44]} 16. Nd5 {[%emt 0:10:27]} Qg4 17. Bf1 {[%emt 0:00:29]} Nxe4 {[%emt 0:20:48]} 18. f3 {[%emt 0:39:25]} Qg3 {[%emt 0:02:55]} 19. f4 {[%emt 0:00:21]} Ng5 {[%emt 0:05:02]} 20. Rd3 {[%emt 0:02:11]} Bd4+ {[%emt 0:01:08]} 21. Kh1 {[%emt 0:00:16]} Qe1 {[%emt 0:02:08]} 22. Rd1 {[%emt 0:01:20]} Qg3 {[%emt 0:04:31]} 23. fxg5 {[%emt 0:03:21]} Ba7 {[%emt 0:01:22]} 24. Bf4 {[%emt 0:01:02]} Qg4 {[%emt 0:01:02]} 25. Qd3 {[%emt 0:01:24]} Bxg2+ {[%emt 0:00:52]} 26. Bxg2 {[%emt 0:00:07]} c6 {[%emt 0:00:16]} 27. Qh3 {[%emt 0:02:49]} Qxh3+ {[%emt 0:00:21]} 28. Bxh3 {[%emt 0:00:05]} cxd5 {[%emt 0:00:03]} 29. Rxd5 {[%emt 0:00:10]} f6 {[%emt 0:01:18]} 30. Bd6 {[%emt 0:00:36]} Rfe8 {[%emt 0:00:45]} 31. gxf6 {[%emt 0:00:13]} Re3 {[%emt 0:01:32]} 32. Bg2 {[%emt 0:01:05]} Rae8 {[%emt 0:01:01]} 33. Rf1 {[%emt 0:01:08]} gxf6 {[%emt 0:00:15]} 34. Rxf6 {[%emt 0:00:36]} Kg7 {[%emt 0:01:00]} 35. Rf1 {[%emt 0:00:24]} R8e6 {[%emt 0:00:43]} 36. Rg5+ {[%emt 0:00:34]} Rg6 {[%emt 0:00:38]} 37. Bf8+ {[%emt 0:00:53]} Kh8 {[%emt 0:00:22]} 38. Rxg6 {[%emt 0:00:39]} hxg6 {[%emt 0:00:05]} 39. Bxb7 {[%emt 0:00:18]} Rb3 {[%emt 0:00:15]} 40. Bxa6 {[%emt 0:00:00]} Rxb2 {[%emt 0:00:00]} 41. Bd3 {[%emt 0:06:21]} Rb6 {[%emt 0:04:05]} 42. Rf7 {[%emt 0:06:03]} Bb8 {[%emt 0:04:09]} 43. Bc5 {[%emt 0:01:15]} Rb3 {[%emt 0:01:12]} 44. Bd4+ {[%emt 0:02:06]} Kg8 {[%emt 0:00:08]} 45. Bc4 {[%emt 0:00:10]} 1-0

[Event "POL-chT 1 Liga 2019"]
[Site "Dzwirzyno"]
[Date "2019.09.13"]
[Round "7.10"]
[White "Nowak, Mikolaj"]
[Black "Sanz Wawer, Daniel"]
[Result "1/2-1/2"]
[ECO "B18"]
[WhiteElo "2262"]
[BlackElo "2244"]
[Annotator "NA"]
[PlyCount "84"]
[EventDate "2019.09.07"]
[EventType "team-tourn"]
[EventCountry "POL"]
[SourceTitle "playchess.com"]
[Source "ChessBase"]
[SourceQuality "1"]
[TimeControl "40/5400+30:1800+30"]

1. e4 {[%emt 0:00:00]} c6 {[%emt 0:00:00]} 2. d4 {[%emt 0:00:00]} d5 {[%emt 0:00:00]} 3. Nc3 {[%emt 0:00:23]} dxe4 {[%emt 0:00:00]} 4. Nxe4 {[%emt 0:00:03]} Bf5 {[%emt 0:00:00]} 5. Ng3 {[%emt 0:00:05]} Bg6 {[%emt 0:00:06]} 6. Nf3 {[%emt 0:00:06]} e6 {[%emt 0:00:51]} 7. Ne5 {[%emt 0:05:51]} Nd7 {[%emt 0:00:34]} 8. Nxg6 {[%emt 0:00:14]} hxg6 {[%emt 0:00:07]} 9. Bd3 {[%emt 0:02:51]} Ngf6 {[%emt 0:00:23]} 10. c3 {[%emt 0:04:11]} Bd6 {[%emt 0:01:26]} 11. f4 {[%emt 0:05:57]} g5 {[%emt 0:10:06]} 12. Qf3 {[%emt 0:06:47]} Qc7 {[%emt 0:03:02]} 13. O-O {[%emt 0:06:29]} g4 {[%emt 0:02:15]} 14. Qe2 {[%emt 0:08:48]} O-O-O {[%emt 0:01:38]} 15. c4 {[%emt 0:01:14]} c5 {[%emt 0:07:56]} 16. b4 {[%emt 0:00:51]} cxd4 {[%emt 0:07:43]} 17. c5 {[%emt 0:00:17]} Bf8 {[%emt 0:03:53]} 18. Bd2 {[%emt 0:03:12]} Nd5 {[%emt 0:04:50]} 19. Rac1 {[%emt 0:12:07]} N7f6 {[%emt 0:05:12]} 20. Rc4 {[%emt 0:15:06]} Ne3 {[%emt 0:06:43]} 21. Bxe3 {[%emt 0:00:40]} dxe3 {[%emt 0:00:05]} 22. Be4 {[%emt 0:02:23]} Be7 {[%emt 0:18:09]} 23. Qxe3 {[%emt 0:01:01]} Nd5 {[%emt 0:00:10]} 24. Bxd5 {[%emt 0:02:27]} Rxd5 {[%emt 0:01:47]} 25. Qe2 {[%emt 0:03:34]} Rh4 {[%emt 0:03:49]} 26. Ne4 {[%emt 0:02:20]} Rdh5 {[%emt 0:05:20]} 27. Nd6+ {[%emt 0:07:35]} Kb8 {[%emt 0:01:17]} 28. Rd1 {[%emt 0:04:11]} Rxh2 {[%emt 0:06:09]} 29. Qxg4 {[%emt 0:00:13]} Qd8 {[%emt 0:07:03]} 30. Rcd4 {[%emt 0:01:45]} Rh1+ {[%emt 0:02:36]} 31. Kf2 {[%emt 0:00:03]} Rxd1 {[%emt 0:01:03]} 32. Qxd1 {[%emt 0:01:23]} Rh4 {[%emt 0:00:01]} 33. Qf3 {[%emt 0:01:08]} Bxd6 {[%emt 0:00:43]} 34. Rxd6 {[%emt 0:00:02]} Qf6 {[%emt 0:00:53]} 35. Kg3 {[%emt 0:02:30]} Rh8 {[%emt 0:00:55]} 36. Qd3 {[%emt 0:00:43]} g5 {[%emt 0:00:38]} 37. f5 {[%emt 0:00:52]} Qe5+ {[%emt 0:00:22]} 38. Kf2 {[%emt 0:00:26]} Qf4+ {[%emt 0:00:41]} 39. Ke2 {[%emt 0:00:19]} Qe5+ {[%emt 0:00:18]} 40. Kf2 {[%emt 0:00:00]} Qf4+ {[%emt 0:00:00]} 41. Ke2 {[%emt 0:00:21]} Qg4+ {[%emt 0:08:09]} 42. Kf2 {[%emt 0:00:42]} Qf4+ {[%emt 0:01:53]} 1/2-1/2